fUST/lending_fUST_20250903
["ID","MTS","AMOUNT","RATE_DAILY","PERIOD"]
[383314444,1756902665313,-1213.36,0.0001452,2]
[383314446,1756902665323,-606.9,0.0001452,2]
[383314448,1756902665333,-480.0,0.0001452,2]
[383314450,1756902665343,-565.74,0.0001452,2]
[383314453,1756902665353,-480.0,0.0001452,2]
[383314455,1756902665363,-480.0,0.0001452,2]
[383314457,1756902665373,-281.12,0.0001452,2]
[383314458,1756902665382,-480.0,0.0001452,2]
[383314461,1756902665392,-1118.3,0.0001452,2]
[383314462,1756902665401,-480.0,0.0001452,2]
[383314465,1756902665413,-480.0,0.0001452,2]
[383314466,1756902665423,-480.0,0.0001452,2]
[383314469,1756902665433,-480.0,0.0001452,2]
[383314471,1756902665442,-480.0,0.0001452,2]
[383314473,1756902665452,-480.0,0.0001452,2]
[383314475,1756902665461,-480.0,0.0001452,2]
[383314477,1756902665470,-480.0,0.0001452,2]
[383314479,1756902665480,-480.0,0.0001452,2]
[383314481,1756902665489,-480.0,0.0001452,2]
[383314483,1756902665498,-275.88415978,0.0001452,2]
[383314485,1756902665507,-480.0,0.0001452,2]
[383314487,1756902665516,-480.0,0.0001452,2]
[383314489,1756902665525,-480.0,0.0001452,2]
[383314491,1756902665535,-480.0,0.0001452,2]
[383314492,1756902665544,-1392.5,0.0001452,2]
[383314494,1756902665553,-480.0,0.0001452,2]
[383314496,1756902665563,-480.0,0.0001452,2]
[383314498,1756902665572,-480.0,0.0001452,2]
[383314500,1756902665582,-1157.36,0.0001452,2]
[383314502,1756902665592,-480.0,0.0001452,2]
[383314504,1756902665601,-480.0,0.0001452,2]
[383314506,1756902665611,-480.0,0.0001452,2]
[383314508,1756902665620,-480.0,0.0001452,2]
[383314510,1756902665630,-1188.25,0.0001452,2]
[383314512,1756902665639,-480.0,0.0001452,2]
[383314514,1756902665648,-480.0,0.0001452,2]
[383314515,1756902665658,-786.72,0.0001452,2]
[383314518,1756902665668,-480.0,0.0001452,2]
[383314520,1756902665677,-968.55,0.0001452,2]
[383314521,1756902665687,-480.0,0.0001452,2]
[383314523,1756902665696,-804.96,0.0001452,2]
[383314525,1756902665705,-480.0,0.0001452,2]
[383314527,1756902665715,-480.0,0.0001452,2]
[383314529,1756902665724,-480.0,0.0001452,2]
[383314531,1756902665734,-480.0,0.0001452,2]
[383314533,1756902665743,-480.0,0.0001452,2]
[383314535,1756902665752,-480.0,0.0001452,2]
[383314537,1756902665762,-3576.34,0.0001452,2]
[383314539,1756902665772,-480.0,0.0001452,2]
[383314541,1756902665782,-480.0,0.0001452,2]
[383314543,1756902665791,-480.0,0.0001452,2]
[383314545,1756902665801,-480.0,0.0001452,2]
[383314547,1756902665811,-480.0,0.0001452,2]
[383314549,1756902665820,-480.0,0.0001452,2]
[383314551,1756902665830,-564.09,0.0001452,2]
[383314553,1756902665840,-480.0,0.0001452,2]
[383314555,1756902665849,-480.0,0.0001452,2]
[383314557,1756902665859,-1140.19,0.0001452,2]
[383314559,1756902665868,-274.37860939,0.0001452,2]
[383314561,1756902665878,-480.0,0.0001452,2]
[383314563,1756902665888,-480.0,0.0001452,2]
[383314565,1756902665899,-500.01,0.0001452,2]
[383314567,1756902665909,-480.0,0.0001452,2]
[383314569,1756902665919,-360.43,0.0001452,2]
[383314571,1756902665929,-535.9,0.0001452,2]
[383314574,1756902665941,-480.0,0.0001452,2]
[383314575,1756902665950,-157.77515956,0.0001452,2]
[383314577,1756902665964,-480.0,0.0001452,2]
[383314580,1756902665974,-3480.49,0.0001452,2]
[383314582,1756902665984,-781.04,0.0001452,2]
[383314584,1756902665994,-225.52,0.0001452,2]
[383314586,1756902666003,-480.0,0.0001452,2]
[383314588,1756902666013,-480.0,0.0001452,2]
[383314590,1756902666022,-480.0,0.0001452,2]
[383314592,1756902666032,-480.0,0.0001452,2]
[383314594,1756902666041,-631.86,0.0001452,2]
[383314596,1756902666051,-480.0,0.0001452,2]
[383314598,1756902666060,-628.8,0.0001452,2]
[383314600,1756902666070,-480.0,0.0001452,2]
[383314602,1756902666079,-480.0,0.0001452,2]
[383314604,1756902666089,-589.97,0.0001452,2]
[383314605,1756902666099,-480.0,0.0001452,2]
[383314607,1756902666109,-533.64,0.0001452,2]
[383314609,1756902666118,-1207.72,0.0001452,2]
[383314611,1756902666128,-480.0,0.0001452,2]
[383314613,1756902666138,-480.0,0.0001452,2]
[383314615,1756902666148,-480.0,0.0001452,2]
[383314617,1756902666157,-658.68,0.0001452,2]
[383314619,1756902666167,-625.86,0.0001452,2]
[383314621,1756902666176,-500.0,0.00014521,2]
[383314623,1756902666186,-347.04780642,0.00014521,2]
[383314625,1756902666196,-1000.0,0.00014521,2]
[383314627,1756902666205,-500.0,0.00014521,2]
[383314629,1756902666215,-492.65795747,0.00014521,2]
[383314631,1756902666231,-1000.0,0.00014521,2]
[383314633,1756902666241,-160.0,0.00014544,2]
[383314635,1756902666251,-1220.19150999,0.00014557,2]
[383314637,1756902666261,-1122.7782739,0.00014657,2]
[383314640,1756902666271,-155.391365,0.00014672,3]
[383314642,1756902666286,-1923.8580654,0.00014674,2]
[383314643,1756902666302,-2437.1961699,0.0001476,2]
[383314645,1756902666315,-22309.888401,0.00014786,2]
[383314647,1756902666325,-506.71877065,0.00014794,2]
[383314650,1756902666335,-2827.49615234,0.00014794,2]
[383314651,1756902666345,-480.0,0.00014794,2]
[383314654,1756902666359,-480.0,0.00014794,2]
[383314655,1756902666369,-151.0,0.00014794,2]
[383314657,1756902666379,-480.0,0.00014794,2]
[383314660,1756902666389,-480.0,0.00014794,2]
[383314662,1756902666399,-243.27,0.00014794,2]
[383314663,1756902666408,-480.0,0.00014794,2]
[383314666,1756902666418,-354.33,0.00014794,2]
[383314667,1756902666427,-243.82,0.00014794,2]
[383314669,1756902666437,-480.0,0.00014794,2]
[383314671,1756902666446,-175.21,0.00014794,2]
[383314673,1756902666456,-480.0,0.00014794,2]
[383314675,1756902666466,-290.97,0.00014794,2]
[383314677,1756902666476,-480.0,0.00014794,2]
[383314679,1756902666485,-480.0,0.00014794,2]
[383314682,1756902666495,-480.0,0.00014794,2]
[383314684,1756902666504,-532.28,0.00014794,2]
[383314686,1756902666514,-480.0,0.00014794,2]
[383314687,1756902666523,-480.0,0.00014794,2]
[383314690,1756902666533,-379.42,0.00014794,2]
[383314691,1756902666543,-480.0,0.00014794,2]
[383314693,1756902666553,-161.11902796,0.00014794,2]
[383314695,1756902666563,-480.0,0.00014794,2]
[383314698,1756902666572,-480.0,0.00014794,2]
[383314700,1756902666582,-480.0,0.00014794,2]
[383314701,1756902666594,-627.26,0.00014794,2]
[383314703,1756902666604,-289.43288125,0.00014794,2]
[383314705,1756902666614,-152.14769542,0.00014794,2]
[383314707,1756902666623,-151.0,0.00014794,2]
[383314709,1756902666633,-151.0,0.00014794,2]
[383314712,1756902666643,-151.0,0.00014794,2]
[383314714,1756902666653,-480.0,0.00014794,2]
[383314716,1756902666663,-192.48,0.00014794,2]
[383314718,1756902666672,-314.44,0.00014794,2]
[383314720,1756902666682,-578.62,0.00014794,2]
[383314722,1756902666692,-480.0,0.00014794,2]
[383314724,1756902666702,-332.58,0.00014794,2]
[383314726,1756902666712,-429.71,0.00014794,2]
[383314728,1756902666722,-617.77,0.00014794,2]
[383314730,1756902666731,-304.64,0.00014794,2]
[383314732,1756902666741,-481.41,0.00014794,2]
[383314734,1756902666751,-480.0,0.00014794,2]
[383314736,1756902666760,-471.66,0.00014794,2]
[383314738,1756902666769,-579.95,0.00014794,2]
[383314740,1756902666779,-480.0,0.00014794,2]
[383314742,1756902666788,-480.0,0.00014794,2]
[383314744,1756902666798,-480.0,0.00014794,2]
[383314746,1756902666807,-480.0,0.00014794,2]
[383314748,1756902666817,-480.0,0.00014794,2]
[383314750,1756902666826,-480.0,0.00014794,2]
[383314752,1756902666835,-480.0,0.00014794,2]
[383314754,1756902666845,-480.0,0.00014794,2]
[383314756,1756902666856,-230.12,0.00014794,2]
[383314758,1756902666866,-480.0,0.00014794,2]
[383314760,1756902666875,-480.0,0.00014794,2]
[383314762,1756902666885,-480.0,0.00014794,2]
[383314764,1756902666894,-480.0,0.00014794,2]
[383314766,1756902666904,-480.0,0.00014794,2]
[383314768,1756902666913,-480.0,0.00014794,2]
[383314770,1756902666922,-480.0,0.00014794,2]
[383314772,1756902666932,-480.0,0.00014794,2]
[383314774,1756902666942,-480.0,0.00014794,2]
[383314776,1756902666952,-814.64,0.00014794,2]
[383314778,1756902666961,-480.0,0.00014794,2]
[383314780,1756902666971,-480.0,0.00014794,2]
[383314782,1756902666980,-325.2234643,0.00014794,2]
[383314784,1756902666989,-480.0,0.00014794,2]
[383314786,1756902666998,-480.0,0.00014794,2]
[383314788,1756902667008,-480.0,0.00014794,2]
[383314790,1756902667018,-480.0,0.00014794,2]
[383314792,1756902667027,-297.82663123,0.00014794,2]
[383314794,1756902667036,-606.63,0.00014794,2]
[383314796,1756902667046,-212.92,0.00014794,2]
[383314798,1756902667055,-480.0,0.00014794,2]
[383314800,1756902667065,-480.0,0.00014794,2]
[383314802,1756902667074,-480.0,0.00014794,2]
[383314804,1756902667083,-480.0,0.00014794,2]
[383314806,1756902667092,-180.61,0.00014794,2]
[383314808,1756902667101,-480.0,0.00014794,2]
[383314820,1756902667204,-480.0,0.00014794,2]
[383314822,1756902667214,-486.51,0.00014794,2]
[383314824,1756902667224,-480.0,0.00014794,2]
[383314826,1756902667234,-480.0,0.00014794,2]
[383314828,1756902667243,-480.0,0.00014794,2]
[383314830,1756902667253,-480.0,0.00014794,2]
[383314832,1756902667263,-480.0,0.00014794,2]
[383314835,1756902667275,-582.52,0.00014794,2]
[383314837,1756902667286,-480.0,0.00014794,2]
[383314839,1756902667295,-369.02,0.00014794,2]
[383314841,1756902667305,-480.0,0.00014794,2]
[383314843,1756902667315,-480.0,0.00014794,2]
[383314845,1756902667324,-500.0,0.00014794,2]
[383314847,1756902667335,-480.0,0.00014794,2]
[383314849,1756902667344,-480.0,0.00014794,2]
[383314851,1756902667355,-407.75,0.00014794,2]
[383314853,1756902667364,-311.27,0.00014794,2]
[383314855,1756902667374,-169.29,0.00014794,2]
[383314857,1756902667383,-191.8,0.00014794,2]
[383314859,1756902667393,-480.0,0.00014794,2]
[383314861,1756902667403,-480.0,0.00014794,2]
[383314863,1756902667412,-554.46921339,0.00014794,2]
[383314865,1756902667422,-480.0,0.00014794,2]
[383314867,1756902667432,-480.0,0.00014794,2]
[383314869,1756902667442,-480.0,0.00014794,2]
[383314871,1756902667451,-480.0,0.00014794,2]
[383314873,1756902667461,-480.0,0.00014794,2]
[383314875,1756902667470,-480.0,0.00014794,2]
[383314877,1756902667480,-205.38,0.00014794,2]
[383314879,1756902667489,-480.0,0.00014794,2]
[383314881,1756902667498,-480.0,0.00014794,2]
[383314883,1756902667508,-578.96,0.00014794,2]
[383314885,1756902667518,-335.73,0.00014794,2]
[383314888,1756902667527,-480.0,0.00014794,2]
[383314890,1756902667537,-480.0,0.00014794,2]
[383314892,1756902667546,-588.91,0.00014794,2]
[383314894,1756902667556,-480.0,0.00014794,2]
[383314896,1756902667566,-179.42,0.00014794,2]
[383314897,1756902667575,-588.93,0.00014794,2]
[383314899,1756902667585,-480.0,0.00014794,2]
[383314901,1756902667595,-3094.17,0.00014794,2]
[383314903,1756902667604,-480.0,0.00014794,2]
[383314906,1756902667614,-480.0,0.00014794,2]
[383314908,1756902667624,-480.0,0.00014794,2]
[383314910,1756902667633,-480.0,0.00014794,2]
[383314912,1756902667643,-480.0,0.00014794,2]
[383314914,1756902667652,-597.38,0.00014794,2]
[383314916,1756902667662,-480.0,0.00014794,2]
[383314918,1756902667671,-480.0,0.00014794,2]
[383314920,1756902667681,-480.0,0.00014794,2]
[383314922,1756902667691,-1170.24,0.00014794,2]
[383314924,1756902667700,-480.0,0.00014794,2]
[383314926,1756902667710,-480.0,0.00014794,2]
[383314928,1756902667719,-480.0,0.00014794,2]
[383314930,1756902667729,-1140.52,0.00014794,2]
[383314932,1756902667738,-1213.36,0.00014794,2]
[383314934,1756902667749,-480.0,0.00014794,2]
[383314936,1756902667758,-565.74,0.00014794,2]
[383314938,1756902667768,-480.0,0.00014794,2]
[383314940,1756902667778,-480.0,0.00014794,2]
[383314942,1756902667788,-339.25,0.00014794,2]
[383314944,1756902667798,-1118.3,0.00014794,2]
[383314946,1756902667808,-480.0,0.00014794,2]
[383314948,1756902667817,-480.0,0.00014794,2]
[383314950,1756902667826,-480.0,0.00014794,2]
[383314952,1756902667837,-480.0,0.00014794,2]
[383314955,1756902667846,-480.0,0.00014794,2]
[383314957,1756902667856,-480.0,0.00014794,2]
[383314959,1756902667865,-480.0,0.00014794,2]
[383314961,1756902667874,-480.0,0.00014794,2]
[383314962,1756902667883,-480.0,0.00014794,2]
[383314964,1756902667893,-151.0,0.00014794,2]
[383314966,1756902667902,-500.0,0.00014794,2]
[383314968,1756902667913,-480.0,0.00014794,2]
[383314970,1756902667923,-480.0,0.00014794,2]
[383314973,1756902667932,-605.2,0.00014794,2]
[383314975,1756902667943,-480.0,0.00014794,2]
[383314977,1756902667952,-1392.5,0.00014794,2]
[383314979,1756902667962,-480.0,0.00014794,2]
[383314981,1756902667971,-480.0,0.00014794,2]
[383314983,1756902667980,-480.0,0.00014794,2]
[383314985,1756902667990,-1157.36,0.00014794,2]
[383314987,1756902668000,-480.0,0.00014794,2]
[383314989,1756902668009,-480.0,0.00014794,2]
[383314991,1756902668019,-500.33,0.00014794,2]
[383314993,1756902668028,-480.0,0.00014794,2]
[383314995,1756902668037,-1188.25,0.00014794,2]
[383314997,1756902668047,-406.93,0.00014794,2]
[383314999,1756902668056,-480.0,0.00014794,2]
[383315001,1756902668066,-786.72,0.00014794,2]
[383315003,1756902668075,-480.0,0.00014794,2]
[383315005,1756902668085,-968.55,0.00014794,2]
[383315007,1756902668094,-480.0,0.00014794,2]
[383315009,1756902668103,-804.96,0.00014794,2]
[383315011,1756902668112,-480.0,0.00014794,2]
[383315013,1756902668121,-480.0,0.00014794,2]
[383315015,1756902668131,-480.0,0.00014794,2]
[383315017,1756902668141,-480.0,0.00014794,2]
[383315019,1756902668150,-472.73,0.00014794,2]
[383315021,1756902668160,-480.0,0.00014794,2]
[383315023,1756902668169,-3576.34,0.00014794,2]
[383315025,1756902668179,-480.0,0.00014794,2]
[383315027,1756902668188,-480.0,0.00014794,2]
[383315028,1756902668198,-510.81,0.00014794,2]
[383315030,1756902668207,-480.0,0.00014794,2]
[383315031,1756902668216,-480.0,0.00014794,2]
[383315032,1756902668226,-480.0,0.00014794,2]
[383315033,1756902668235,-564.09,0.00014794,2]
[383315034,1756902668244,-480.0,0.00014794,2]
[383315035,1756902668254,-1140.19,0.00014794,2]
[383315036,1756902668263,-480.0,0.00014794,2]
[383315037,1756902668275,-480.0,0.00014794,2]
[383315038,1756902668286,-480.0,0.00014794,2]
[383315039,1756902668296,-535.9,0.00014794,2]
[383315040,1756902668306,-348.46,0.00014794,2]
[383315041,1756902668316,-508.64,0.00014794,2]
[383315042,1756902668326,-3480.49,0.00014794,2]
[383315043,1756902668336,-781.04,0.00014794,2]
[383315044,1756902668346,-151.0,0.00014794,2]
[383315045,1756902668355,-200.0,0.00014794,2]
[383315046,1756902668365,-480.0,0.00014794,2]
[383315047,1756902668375,-561.15,0.00014794,2]
[383315049,1756902668385,-502.74602633,0.00014794,2]
[383315051,1756902668394,-631.86,0.00014794,2]
[383315053,1756902668404,-480.0,0.00014794,2]
[383315055,1756902668414,-480.0,0.00014794,2]
[383315057,1756902668424,-480.0,0.00014794,2]
[383315059,1756902668433,-480.0,0.00014794,2]
[383315061,1756902668442,-1207.72,0.00014794,2]
[383315063,1756902668452,-480.0,0.00014794,2]
[383315065,1756902668461,-480.0,0.00014794,2]
[383315067,1756902668471,-480.0,0.00014794,2]
[383315069,1756902668480,-658.68,0.00014794,2]
[383315071,1756902668489,-625.86,0.00014794,2]
[383315073,1756902668499,-1000.0,0.000148,3]
[383315075,1756902668508,-245.0,0.00014802,2]
[383315078,1756902668518,-397.29165683,0.00014821,2]
[383315080,1756902668527,-1000.0,0.00014821,2]
[383315081,1756902668537,-535.88328282,0.00014821,2]
[383315083,1756902668547,-1000.0,0.00014821,2]
[383315086,1756902668556,-1000.0,0.00014821,2]
[383315088,1756902668566,-1000.0,0.00014821,2]
[383315090,1756902668577,-451.43042503,0.00014837,2]
[383315092,1756902668586,-155.391365,0.00014857,3]
[383315094,1756902668596,-15011.40373096,0.00014859,2]
[383315096,1756902668605,-245.0,0.00014864,2]
[383315097,1756902668615,-245.0,0.00014868,2]
[383315099,1756902668624,-245.0,0.00014873,2]
[383315102,1756902668633,-245.0,0.00014899,2]
[383315104,1756902668643,-151.0,0.000149,2]
[383315105,1756902668653,-245.0,0.00014901,2]
[383315107,1756902668662,-1200.0,0.00014958,2]
[383315109,1756902668672,-245.0,0.00014965,2]
[383315111,1756902668682,-245.0,0.00014965,2]
[383315113,1756902668691,-420.0,0.00014981,2]
[383315115,1756902668700,-10565.36259732,0.00015,2]
[383315117,1756902668709,-160.0,0.00015,2]
[383315119,1756902668719,-245.0,0.00015039,2]
[383315122,1756902668729,-158.481365,0.00015043,3]
[383315124,1756902668739,-155.391365,0.00015043,3]
[383315126,1756902668748,-328.55301074,0.00015059,2]
[383315128,1756902668758,-245.0,0.0001506,2]
[383315130,1756902668768,-245.0,0.00015062,2]
[383315132,1756902668777,-500.0,0.00015068,2]
[383315134,1756902668787,-245.0,0.00015068,2]
[383315136,1756902668796,-500.0,0.00015068,2]
[383315138,1756902668805,-151.0,0.00015068,2]
[383315140,1756902668815,-480.0,0.00015068,2]
[383315142,1756902668824,-410.64,0.00015068,2]
[383315144,1756902668835,-480.0,0.00015068,2]
[383315146,1756902668845,-480.0,0.00015068,2]
[383315148,1756902668854,-480.0,0.00015068,2]
[383315150,1756902668863,-480.0,0.00015068,2]
[383315152,1756902668872,-480.0,0.00015068,2]
[383315154,1756902668884,-480.0,0.00015068,2]
[383315156,1756902668893,-480.0,0.00015068,2]
[383315158,1756902668903,-175.096731,0.00015068,2]
[383315160,1756902668912,-487.47,0.00015068,2]
[383315162,1756902668922,-480.0,0.00015068,2]
[383315164,1756902668931,-480.0,0.00015068,2]
[383315166,1756902668941,-341.84,0.00015068,2]
[383315168,1756902668950,-480.0,0.00015068,2]
[383315170,1756902668959,-480.0,0.00015068,2]
[383315172,1756902668968,-462.36,0.00015068,2]
[383315174,1756902668978,-308.33,0.00015068,2]
[383315176,1756902668988,-480.0,0.00015068,2]
[383315178,1756902668997,-579.95,0.00015068,2]
[383315180,1756902669006,-480.0,0.00015068,2]
[383315182,1756902669016,-480.0,0.00015068,2]
[383315184,1756902669025,-480.0,0.00015068,2]
[383315186,1756902669035,-480.0,0.00015068,2]
[383315188,1756902669044,-480.0,0.00015068,2]
[383315189,1756902669054,-480.0,0.00015068,2]
[383315191,1756902669063,-480.0,0.00015068,2]
[383315193,1756902669072,-480.0,0.00015068,2]
[383315195,1756902669083,-480.0,0.00015068,2]
[383315197,1756902669093,-480.0,0.00015068,2]
[383315199,1756902669103,-615.18,0.00015068,2]
[383315201,1756902669113,-480.0,0.00015068,2]
[383315203,1756902669122,-423.87,0.00015068,2]
[383315205,1756902669131,-480.0,0.00015068,2]
[383315207,1756902669141,-369.34,0.00015068,2]
[383315209,1756902669150,-480.0,0.00015068,2]
[383315211,1756902669160,-480.0,0.00015068,2]
[383315213,1756902669169,-814.64,0.00015068,2]
[383315215,1756902669178,-197.99548879,0.00015068,2]
[383315217,1756902669188,-480.0,0.00015068,2]
[383315219,1756902669198,-403.3,0.00015068,2]
[383315221,1756902669207,-480.0,0.00015068,2]
[383315223,1756902669217,-235.91837116,0.00015068,2]
[383315225,1756902669226,-480.0,0.00015068,2]
[383315227,1756902669236,-480.0,0.00015068,2]
[383315229,1756902669246,-480.0,0.00015068,2]
[383315231,1756902669255,-575.12,0.00015068,2]
[383315233,1756902669265,-480.0,0.00015068,2]
[383315235,1756902669276,-217.5,0.00015068,2]
[383315237,1756902669286,-480.0,0.00015068,2]
[383315239,1756902669296,-480.0,0.00015068,2]
[383315241,1756902669305,-480.0,0.00015068,2]
[383315243,1756902669315,-480.0,0.00015068,2]
[383315245,1756902669325,-480.0,0.00015068,2]
[383315247,1756902669335,-480.0,0.00015068,2]
[383315248,1756902669345,-582.52,0.00015068,2]
[383315250,1756902669355,-480.0,0.00015068,2]
[383315252,1756902669364,-480.0,0.00015068,2]
[383315254,1756902669374,-480.0,0.00015068,2]
[383315256,1756902669383,-480.0,0.00015068,2]
[383315258,1756902669392,-390.75,0.00015068,2]
[383315260,1756902669402,-223.76,0.00015068,2]
[383315262,1756902669412,-480.0,0.00015068,2]
[383315264,1756902669421,-480.0,0.00015068,2]
[383315266,1756902669431,-393.02,0.00015068,2]
[383315268,1756902669440,-480.0,0.00015068,2]
[383315270,1756902669449,-480.0,0.00015068,2]
[383315272,1756902669459,-480.0,0.00015068,2]
[383315274,1756902669469,-480.0,0.00015068,2]
[383315276,1756902669479,-480.0,0.00015068,2]
[383315278,1756902669488,-480.0,0.00015068,2]
[383315280,1756902669498,-578.96,0.00015068,2]
[383315282,1756902669507,-375.12,0.00015068,2]
[383315284,1756902669516,-329.23,0.00015068,2]
[383315286,1756902669525,-480.0,0.00015068,2]
[383315288,1756902669534,-480.0,0.00015068,2]
[383315290,1756902669544,-3094.17,0.00015068,2]
[383315292,1756902669553,-295.37,0.00015068,2]
[383315294,1756902669563,-480.0,0.00015068,2]
[383315296,1756902669572,-462.54,0.00015068,2]
[383315298,1756902669582,-480.0,0.00015068,2]
[383315300,1756902669591,-480.0,0.00015068,2]
[383315302,1756902669601,-480.0,0.00015068,2]
[383315303,1756902669610,-597.38,0.00015068,2]
[383315306,1756902669620,-486.84,0.00015068,2]
[383315307,1756902669629,-480.0,0.00015068,2]
[383315309,1756902669639,-1170.24,0.00015068,2]
[383315311,1756902669648,-480.0,0.00015068,2]
[383315313,1756902669658,-423.98,0.00015068,2]
[383315315,1756902669667,-480.0,0.00015068,2]
[383315317,1756902669677,-1140.52,0.00015068,2]
[383315319,1756902669687,-1213.36,0.00015068,2]
[383315321,1756902669696,-433.42,0.00015068,2]
[383315323,1756902669706,-565.74,0.00015068,2]
[383315325,1756902669715,-480.0,0.00015068,2]
[383315327,1756902669725,-480.0,0.00015068,2]
[383315329,1756902669734,-1118.3,0.00015068,2]
[383315331,1756902669744,-480.0,0.00015068,2]
[383315333,1756902669754,-480.0,0.00015068,2]
[383315335,1756902669764,-480.0,0.00015068,2]
[383315337,1756902669773,-480.0,0.00015068,2]
[383315339,1756902669784,-480.0,0.00015068,2]
[383315341,1756902669797,-174.13172677,0.00015068,2]
[383315343,1756902669807,-480.0,0.00015068,2]
[383315345,1756902669817,-480.0,0.00015068,2]
[383315348,1756902669826,-316.34889724,0.00015068,2]
[383315350,1756902669838,-480.0,0.00015068,2]
[383315352,1756902669849,-480.0,0.00015068,2]
[383315353,1756902669860,-480.0,0.00015068,2]
[383315355,1756902669870,-1392.5,0.00015068,2]
[383315357,1756902669879,-495.99,0.00015068,2]
[383315359,1756902669888,-337.2,0.00015068,2]
[383315361,1756902669898,-480.0,0.00015068,2]
[383315363,1756902669908,-1157.36,0.00015068,2]
[383315365,1756902669918,-391.6,0.00015068,2]
[383315367,1756902669927,-480.0,0.00015068,2]
[383315369,1756902669937,-480.0,0.00015068,2]
[383315371,1756902669947,-1188.25,0.00015068,2]
[383315373,1756902669956,-786.72,0.00015068,2]
[383315375,1756902669965,-428.57660356,0.00015068,2]
[383315377,1756902669975,-968.55,0.00015068,2]
[383315379,1756902669984,-480.0,0.00015068,2]
[383315381,1756902669993,-804.96,0.00015068,2]
[383315383,1756902670003,-480.0,0.00015068,2]
[383315385,1756902670012,-480.0,0.00015068,2]
[383315387,1756902670021,-480.0,0.00015068,2]
[383315389,1756902670031,-480.0,0.00015068,2]
[383315391,1756902670040,-480.0,0.00015068,2]
[383315393,1756902670050,-3576.34,0.00015068,2]
[383315395,1756902670059,-480.0,0.00015068,2]
[383315397,1756902670069,-480.0,0.00015068,2]
[383315410,1756902670185,-480.0,0.00015068,2]
[383315412,1756902670195,-480.0,0.00015068,2]
[383315414,1756902670205,-480.0,0.00015068,2]
[383315416,1756902670214,-564.09,0.00015068,2]
[383315418,1756902670223,-480.0,0.00015068,2]
[383315420,1756902670234,-1140.19,0.00015068,2]
[383315422,1756902670243,-471.66705573,0.00015068,2]
[383315424,1756902670253,-480.0,0.00015068,2]
[383315426,1756902670263,-480.0,0.00015068,2]
[383315428,1756902670275,-535.9,0.00015068,2]
[383315430,1756902670285,-3480.49,0.00015068,2]
[383315432,1756902670296,-781.04,0.00015068,2]
[383315434,1756902670307,-480.0,0.00015068,2]
[383315436,1756902670316,-631.86,0.00015068,2]
[383315438,1756902670326,-537.62,0.00015068,2]
[383315441,1756902670336,-480.0,0.00015068,2]
[383315442,1756902670347,-480.0,0.00015068,2]
[383315444,1756902670356,-480.0,0.00015068,2]
[383315447,1756902670367,-1207.72,0.00015068,2]